fUSD/lending_fUSD_20250111
["ID","MTS","AMOUNT","RATE_DAILY","PERIOD"]
[348544530,1736611851586,-820.41,0.00011093,2]
[348544531,1736611851596,-500.0,0.00011093,2]
[348544532,1736611851606,-500.0,0.00011093,2]
[348544533,1736611851616,-891.16,0.00011093,2]
[348544534,1736611851627,-500.0,0.00011093,2]
[348544535,1736611851637,-500.0,0.00011093,2]
[348544536,1736611851647,-1836.81,0.00011093,2]
[348544537,1736611851656,-712.5,0.00011093,2]
[348544538,1736611851666,-1289.01,0.00011093,2]
[348544539,1736611851675,-500.0,0.00011093,2]
[348544540,1736611851685,-500.0,0.00011093,2]
[348544541,1736611851695,-771.63,0.00011093,2]
[348544542,1736611851705,-201.3622864,0.00011093,2]
[348544543,1736611851714,-500.0,0.00011093,2]
[348544544,1736611851724,-656.33,0.00011093,2]
[348544545,1736611851733,-591.98,0.00011093,2]
[348544546,1736611851743,-500.0,0.00011093,2]
[348544547,1736611851753,-589.73,0.00011093,2]
[348544548,1736611851762,-500.0,0.00011093,2]
[348544549,1736611851772,-811.2,0.00011093,2]
[348544550,1736611851781,-500.0,0.00011093,2]
[348544551,1736611851791,-500.0,0.00011093,2]
[348544552,1736611851800,-500.0,0.00011093,2]
[348544553,1736611851809,-500.0,0.00011093,2]
[348544554,1736611851820,-500.0,0.00011093,2]
[348544555,1736611851829,-1470.43,0.00011093,2]
[348544556,1736611851839,-1326.61,0.00011093,2]
[348544557,1736611851848,-500.0,0.00011093,2]
[348544558,1736611851858,-500.0,0.00011093,2]
[348544559,1736611851869,-500.0,0.00011094,2]
[348544560,1736611851879,-500.0,0.00011094,2]
[348544561,1736611851889,-500.0,0.00011094,2]
[348544562,1736611851899,-500.0,0.00011094,2]
[348544563,1736611851909,-500.0,0.00011094,2]
[348544564,1736611851918,-581.1,0.00011094,2]
[348544565,1736611851927,-500.0,0.00011094,2]
[348544566,1736611851937,-500.0,0.00011094,2]
[348544567,1736611851946,-216.7,0.00011094,2]
[348544568,1736611851956,-2075.83,0.00011094,2]
[348544569,1736611851965,-1025.56,0.00011094,2]
[348544570,1736611851975,-1975.84,0.00011094,2]
[348544571,1736611851984,-2572.54,0.00011094,2]
[348544572,1736611851994,-1860.87,0.00011094,2]
[348544573,1736611852004,-1253.45,0.00011094,2]
[348544574,1736611852013,-1068.46,0.00011094,2]
[348544575,1736611852022,-1120.31,0.00011094,2]
[348544576,1736611852032,-3375.29,0.00011094,2]
[348544577,1736611852041,-2400.67,0.00011094,2]
[348544578,1736611852051,-730.66,0.00011094,2]
[348544579,1736611852062,-510.73,0.00011094,2]
[348544580,1736611852071,-534.85,0.00011094,2]
[348544581,1736611852081,-500.0,0.00011094,2]
[348544582,1736611852091,-685.17,0.00011094,2]
[348544583,1736611852100,-1009.7,0.00011095,2]
[348544584,1736611852112,-465.52854237,0.00011107,2]
[348544585,1736611852121,-465.52854237,0.00011176,2]
[348544586,1736611852132,-200.0,0.000112,2]
[348544587,1736611852141,-999.0,0.00011205,2]
[348544588,1736611852151,-999.0,0.00011205,2]
[348544589,1736611852161,-999.0,0.00011205,2]
[348544590,1736611852170,-999.0,0.00011205,2]
[348544591,1736611852180,-999.0,0.00011205,2]
[348544592,1736611852189,-999.0,0.00011205,2]
[348544593,1736611852198,-999.0,0.00011205,2]
[348544594,1736611852208,-999.0,0.00011205,2]
[348544595,1736611852218,-999.0,0.00011205,2]
[348544596,1736611852228,-999.0,0.00011205,2]
[348544597,1736611852242,-999.0,0.00011205,2]
[348544598,1736611852252,-999.0,0.00011205,2]
[348544599,1736611852262,-999.0,0.00011205,2]
[348544600,1736611852272,-999.0,0.00011205,2]
[348544601,1736611852282,-999.0,0.00011205,2]
[348544602,1736611852292,-999.0,0.00011205,2]
[348544603,1736611852301,-999.0,0.00011205,2]
[348544604,1736611852311,-999.0,0.00011205,2]
[348544605,1736611852322,-999.0,0.00011205,2]
[348544606,1736611852333,-1019.0,0.00011205,2]
[348544607,1736611852342,-465.52854237,0.00011245,2]
[348544608,1736611852352,-706.17,0.00011268,2]
[348544609,1736611852361,-500.0,0.00011268,2]
[348544610,1736611852371,-152.0,0.00011305,3]
[348544611,1736611852381,-465.52854237,0.00011314,2]
[348544612,1736611852391,-1178.0,0.00011367,2]
[348544613,1736611852401,-500.0,0.00011367,2]
[348544614,1736611852411,-500.0,0.00011367,2]
[348544615,1736611852421,-500.0,0.00011367,2]
[348544616,1736611852430,-233.98215522,0.00011367,2]
[348544617,1736611852439,-500.0,0.00011367,2]
[348544618,1736611852449,-500.0,0.00011367,2]
[348544619,1736611852459,-500.0,0.00011367,2]
[348544620,1736611852468,-500.0,0.00011367,2]
[348544621,1736611852478,-500.0,0.00011367,2]
[348544622,1736611852487,-1085.47,0.00011367,2]
[348544623,1736611852497,-233.32,0.00011367,2]
[348544624,1736611852507,-500.0,0.00011367,2]
[348544625,1736611852516,-500.0,0.00011367,2]
[348544626,1736611852525,-585.76,0.00011367,2]
[348544627,1736611852535,-500.0,0.00011367,2]
[348544628,1736611852544,-521.42,0.00011367,2]
[348544629,1736611852554,-500.0,0.00011367,2]
[348544630,1736611852564,-500.0,0.00011367,2]
[348544631,1736611852574,-686.43,0.00011367,2]
[348544632,1736611852583,-557.227762,0.00011367,2]
[348544633,1736611852593,-500.0,0.00011367,2]
[348544634,1736611852602,-500.0,0.00011367,2]
[348544635,1736611852611,-565.93465827,0.00011367,2]
[348544636,1736611852621,-484.8198,0.00011367,2]
[348544637,1736611852630,-935.26,0.00011367,2]
[348544638,1736611852640,-500.0,0.00011367,2]
[348544639,1736611852650,-267.36,0.00011367,2]
[348544640,1736611852659,-1526.19,0.00011367,2]
[348544641,1736611852669,-320.64,0.00011367,2]
[348544642,1736611852679,-500.0,0.00011367,2]
[348544643,1736611852689,-500.0,0.00011367,2]
[348544644,1736611852699,-500.0,0.00011367,2]
[348544645,1736611852709,-500.0,0.00011367,2]
[348544646,1736611852718,-742.24,0.00011367,2]
[348544647,1736611852727,-500.0,0.00011367,2]
[348544648,1736611852738,-500.0,0.00011367,2]
[348544649,1736611852747,-503.84,0.00011367,2]
[348544650,1736611852756,-585.44,0.00011367,2]
[348544651,1736611852766,-500.0,0.00011367,2]
[348544652,1736611852775,-500.0,0.00011367,2]
[348544653,1736611852785,-500.0,0.00011367,2]
[348544654,1736611852795,-502.21,0.00011367,2]
[348544655,1736611852804,-2051.78,0.00011367,2]
[348544656,1736611852814,-500.0,0.00011367,2]
[348544657,1736611852824,-500.0,0.00011367,2]
[348544658,1736611852833,-1542.46,0.00011367,2]
[348544659,1736611852843,-564.39,0.00011367,2]
[348544660,1736611852852,-500.0,0.00011367,2]
[348544661,1736611852861,-1202.6,0.00011367,2]
[348544662,1736611852874,-500.0,0.00011367,2]
[348544663,1736611852884,-3823.51,0.00011367,2]
[348544664,1736611852894,-500.0,0.00011367,2]
[348544665,1736611852904,-500.0,0.00011367,2]
[348544666,1736611852915,-500.0,0.00011367,2]
[348544667,1736611853082,-1082.25,0.00011367,2]
[348544668,1736611853092,-500.0,0.00011367,2]
[348544669,1736611853101,-500.0,0.00011367,2]
[348544670,1736611853111,-524.81,0.00011367,2]
[348544671,1736611853120,-2517.63,0.00011367,2]
[348544672,1736611853129,-533.58,0.00011367,2]
[348544673,1736611853139,-500.0,0.00011367,2]
[348544674,1736611853149,-2028.25,0.00011367,2]
[348544675,1736611853158,-500.0,0.00011367,2]
[348544676,1736611853168,-1281.1,0.00011367,2]
[348544677,1736611853178,-2382.25,0.00011367,2]
[348544678,1736611853188,-2782.4,0.00011367,2]
[348544679,1736611853197,-663.64,0.00011367,2]
[348544680,1736611853207,-500.0,0.00011367,2]
[348544681,1736611853215,-820.41,0.00011367,2]
[348544682,1736611853225,-500.0,0.00011367,2]
[348544683,1736611853235,-500.0,0.00011367,2]
[348544684,1736611853246,-891.16,0.00011367,2]
[348544685,1736611853255,-580.06,0.00011367,2]
[348544686,1736611853264,-500.0,0.00011367,2]
[348544687,1736611853273,-1836.81,0.00011367,2]
[348544688,1736611853283,-712.5,0.00011367,2]
[348544689,1736611853292,-1289.01,0.00011367,2]
[348544690,1736611853301,-771.63,0.00011367,2]
[348544691,1736611853311,-656.33,0.00011367,2]
[348544692,1736611853320,-584.28,0.00011367,2]
[348544693,1736611853330,-589.73,0.00011367,2]
[348544694,1736611853340,-500.0,0.00011367,2]
[348544695,1736611853349,-811.2,0.00011367,2]
[348544696,1736611853359,-500.0,0.00011367,2]
[348544697,1736611853369,-500.0,0.00011367,2]
[348544698,1736611853379,-500.0,0.00011367,2]
[348544699,1736611853388,-500.0,0.00011367,2]
[348544700,1736611853398,-1470.43,0.00011367,2]
[348544701,1736611853407,-1326.61,0.00011367,2]
[348544702,1736611853416,-631.95,0.00011367,2]
[348544703,1736611853426,-500.0,0.00011367,2]
[348544704,1736611853435,-500.0,0.00011368,2]
[348544705,1736611853445,-500.0,0.00011368,2]
[348544706,1736611853454,-500.0,0.00011368,2]
[348544707,1736611853464,-500.0,0.00011368,2]
[348544708,1736611853473,-500.0,0.00011368,2]
[348544709,1736611853482,-581.1,0.00011368,2]
[348544710,1736611853492,-500.0,0.00011368,2]
[348544711,1736611853501,-500.0,0.00011368,2]
[348544712,1736611853510,-2075.83,0.00011368,2]
[348544713,1736611853520,-1025.56,0.00011368,2]
[348544714,1736611853530,-1975.84,0.00011368,2]
[348544715,1736611853540,-2572.54,0.00011368,2]
[348544716,1736611853549,-1860.87,0.00011368,2]
[348544717,1736611853559,-1253.45,0.00011368,2]
[348544718,1736611853570,-1068.46,0.00011368,2]
[348544719,1736611853579,-1120.31,0.00011368,2]
[348544720,1736611853588,-3375.29,0.00011368,2]
[348544721,1736611853598,-2400.67,0.00011368,2]
[348544722,1736611853607,-730.66,0.00011368,2]
[348544723,1736611853616,-510.73,0.00011368,2]
[348544724,1736611853625,-534.85,0.00011368,2]
[348544725,1736611853634,-500.0,0.00011368,2]
[348544726,1736611853643,-685.17,0.00011368,2]
[348544727,1736611853653,-465.52854237,0.00011383,2]
[348544728,1736611853663,-465.52854237,0.00011452,2]
[348544729,1736611853673,-150.0,0.00011479,2]
[348544730,1736611853683,-979.7,0.00011479,2]
[348544731,1736611853692,-50000.0,0.000115,2]
[348544732,1736611853703,-2751.0,0.00011507,2]
[348544733,1736611853712,-1861.0,0.0001151,2]
[348544734,1736611853721,-1259.0,0.0001151,2]
[348544735,1736611853730,-915.0,0.0001151,2]
[348544736,1736611853740,-820.0,0.0001151,2]
[348544737,1736611853749,-2944.0,0.0001151,2]
[348544738,1736611853759,-537.0,0.0001151,2]
[348544739,1736611853768,-3978.0,0.0001151,2]
[348544740,1736611853778,-465.52854237,0.00011521,2]
[348544741,1736611853787,-706.17,0.00011542,2]
[348544742,1736611853798,-500.0,0.00011542,2]
[348544743,1736611853807,-465.52854237,0.0001159,2]
[348544744,1736611853818,-500.0,0.00011641,2]
[348544745,1736611853828,-500.0,0.00011641,2]
[348544746,1736611853837,-500.0,0.00011641,2]
[348544747,1736611853846,-500.0,0.00011641,2]
[348544748,1736611853856,-500.0,0.00011641,2]
[348544749,1736611853866,-500.0,0.00011641,2]
[348544750,1736611853877,-500.0,0.00011641,2]
[348544751,1736611853886,-414.44969735,0.00011641,2]
[348544752,1736611853896,-1085.47,0.00011641,2]
[348544753,1736611853905,-500.0,0.00011641,2]
[348544754,1736611853914,-500.0,0.00011641,2]
[348544755,1736611853923,-585.76,0.00011641,2]
[348544756,1736611853932,-500.0,0.00011641,2]
[348544757,1736611853942,-521.42,0.00011641,2]
[348544758,1736611853951,-500.0,0.00011641,2]
[348544759,1736611853961,-500.0,0.00011641,2]
[348544760,1736611853970,-686.43,0.00011641,2]
[348544761,1736611853979,-557.227762,0.00011641,2]
[348544762,1736611853988,-500.0,0.00011641,2]
[348544763,1736611853997,-500.0,0.00011641,2]
[348544764,1736611854007,-484.8198,0.00011641,2]
[348544765,1736611854016,-935.26,0.00011641,2]
[348544766,1736611854026,-500.0,0.00011641,2]
[348544767,1736611854036,-1526.19,0.00011641,2]
[348544768,1736611854046,-500.0,0.00011641,2]
[348544769,1736611854055,-500.0,0.00011641,2]
[348544770,1736611854066,-500.0,0.00011641,2]
[348544771,1736611854075,-500.0,0.00011641,2]
[348544772,1736611854086,-500.0,0.00011641,2]
[348544773,1736611854096,-742.24,0.00011641,2]
[348544774,1736611854106,-500.0,0.00011641,2]
[348544775,1736611854116,-503.84,0.00011641,2]
[348544776,1736611854125,-500.0,0.00011641,2]
[348544777,1736611854134,-585.44,0.00011641,2]
[348544778,1736611854143,-500.0,0.00011641,2]
[348544779,1736611854152,-500.0,0.00011641,2]
[348544780,1736611854162,-2051.78,0.00011641,2]
[348544781,1736611854171,-500.0,0.00011641,2]
[348544782,1736611854181,-500.0,0.00011641,2]
[348544783,1736611854190,-1542.46,0.00011641,2]
[348544784,1736611854198,-564.39,0.00011641,2]
[348544785,1736611854207,-500.0,0.00011641,2]
[348544786,1736611854216,-1202.6,0.00011641,2]
[348544787,1736611854226,-500.0,0.00011641,2]
[348544788,1736611854238,-3823.51,0.00011641,2]
[348544789,1736611854247,-500.0,0.00011641,2]
[348544790,1736611854256,-500.0,0.00011641,2]
[348544791,1736611854266,-500.0,0.00011641,2]
[348544792,1736611854275,-1082.25,0.00011641,2]
[348544793,1736611854285,-500.0,0.00011641,2]
[348544794,1736611854294,-500.0,0.00011641,2]
[348544795,1736611854303,-524.81,0.00011641,2]
[348544796,1736611854313,-2517.63,0.00011641,2]
[348544797,1736611854323,-533.58,0.00011641,2]
[348544798,1736611854332,-500.0,0.00011641,2]
[348544799,1736611854341,-2028.25,0.00011641,2]
[348544800,1736611854350,-500.0,0.00011641,2]
[348544801,1736611854359,-1281.1,0.00011641,2]
[348544802,1736611854368,-2382.25,0.00011641,2]
[348544803,1736611854378,-2782.4,0.00011641,2]
[348544804,1736611854387,-663.64,0.00011641,2]
[348544805,1736611854397,-500.0,0.00011641,2]
[348544806,1736611854407,-820.41,0.00011641,2]
[348544807,1736611854416,-500.0,0.00011641,2]
[348544808,1736611854425,-500.0,0.00011641,2]
[348544809,1736611854434,-891.16,0.00011641,2]
[348544810,1736611854444,-500.0,0.00011641,2]
[348544811,1736611854454,-1836.81,0.00011641,2]
[348544812,1736611854463,-712.5,0.00011641,2]
[348544813,1736611854473,-1289.01,0.00011641,2]
[348544814,1736611854483,-771.63,0.00011641,2]
[348544815,1736611854492,-656.33,0.00011641,2]
[348544816,1736611854502,-589.73,0.00011641,2]
[348544817,1736611854511,-500.0,0.00011641,2]
[348544818,1736611854520,-811.2,0.00011641,2]
[348544819,1736611854530,-500.0,0.00011641,2]
[348544820,1736611854540,-500.0,0.00011641,2]
[348544821,1736611854550,-500.0,0.00011641,2]
[348544822,1736611854559,-500.0,0.00011641,2]
[348544823,1736611854568,-1470.43,0.00011641,2]
[348544824,1736611854577,-1326.61,0.00011641,2]
[348544825,1736611854587,-500.0,0.00011641,2]
[348544826,1736611854596,-500.0,0.00011642,2]
[348544827,1736611854605,-500.0,0.00011642,2]
[348544828,1736611854614,-500.0,0.00011642,2]
[348544829,1736611854624,-390.3,0.00011642,2]
[348544830,1736611854633,-581.1,0.00011642,2]
[348544831,1736611854642,-500.0,0.00011642,2]
[348544832,1736611854651,-500.0,0.00011642,2]
[348544833,1736611854660,-2075.83,0.00011642,2]
[348544834,1736611854669,-1025.56,0.00011642,2]
[348544835,1736611854679,-1975.84,0.00011642,2]
[348544836,1736611854688,-2572.54,0.00011642,2]
[348544837,1736611854697,-1860.87,0.00011642,2]
[348544838,1736611854707,-1253.45,0.00011642,2]
[348544839,1736611854717,-1068.46,0.00011642,2]
[348544840,1736611854726,-1120.31,0.00011642,2]
[348544841,1736611854735,-3375.29,0.00011642,2]
[348544842,1736611854745,-2400.67,0.00011642,2]
[348544843,1736611854755,-730.66,0.00011642,2]
[348544844,1736611854765,-510.73,0.00011642,2]
[348544845,1736611854775,-534.85,0.00011642,2]
[348544846,1736611854784,-500.0,0.00011642,2]
[348544847,1736611854794,-685.17,0.00011642,2]
[348544848,1736611854803,-465.52854237,0.00011659,2]
[348544849,1736611854812,-195.411,0.0001168,2]
[348544850,1736611854822,-150.0,0.0001171,2]
[348544851,1736611854831,-3896.0,0.0001171,2]
[348544852,1736611854840,-1268.0,0.0001171,2]
[348544853,1736611854850,-150.0,0.0001171,2]
[348544854,1736611854859,-635.0,0.0001171,2]
[348544855,1736611854868,-566.0,0.0001171,2]
[348544856,1736611854879,-465.52854237,0.00011728,2]
[348544857,1736611854888,-465.52854237,0.00011797,2]
[348544858,1736611854898,-429.82131162,0.00011804,2]
[348544859,1736611854907,-706.17,0.00011816,2]
[348544860,1736611854916,-500.0,0.00011816,2]
[348544861,1736611854926,-465.52854237,0.00011866,2]
[348544862,1736611854935,-289.29871139,0.00011899,2]
[348544863,1736611854944,-24251.07925534,0.000119,2]
[348544864,1736611855219,-98625.0,0.000119,2]
[348544865,1736611855234,-2106.99237355,0.000119,2]
[348544866,1736611855248,-2681.13771318,0.000119,2]
[348544867,1736611855259,-2134.74678327,0.000119,2]
[348544868,1736611855272,-3975.95831504,0.000119,2]
[348544869,1736611855284,-3446.21271739,0.000119,2]
[348544870,1736611855302,-941.61,0.000119,2]
[348544871,1736611855314,-1587.09168318,0.000119,2]
[348544872,1736611855327,-279.607082,0.000119,2]
[348544873,1736611855355,-829.8,0.00011093,2]
[348544874,1736611855365,-4282.63018021,0.000119,2]
[348544875,1736611855377,-1073.39588492,0.000119,2]
[348544876,1736611855388,-37095.93090267,0.000119,2]
[348544877,1736611855413,-740.07,9.998e-05,2]
[348544878,1736611855423,-14.57667112,0.000119,2]
[348544879,1736611855446,-16686.35026683,0.000119,2]
[348544880,1736611855457,-7935.50010547,0.000119,2]
[348544881,1736611855469,-18655.09684314,0.000119,2]
[348544882,1736611855481,-1006.5,0.000119,2]
[348544883,1736611855493,-103646.47152751,0.000119,2]
[348544884,1736611855504,-1878.77333777,0.000119,2]
[348544885,1736611855531,-139340.10597724,0.000119,2]
[348544886,1736611855544,-887.80834405,0.000119,2]
[348544887,1736611855555,-5482.47632708,0.000119,2]
[348544888,1736611855581,-426.27575759,0.00010546,2]
[348544889,1736611855594,-982.43337259,0.00010546,2]
[348544890,1736611855611,-137.24086982,0.00010546,2]
[348544891,1736611855620,-38265.44173071,0.000119,2]
[348544892,1736611855632,-10499.999999,0.000119,2]
[348544893,1736611856293,-502.50376922,0.00010271,2]
[348544894,1736611856302,-500.0,0.00010271,2]
[348544895,1736611856311,-740.07,0.00010272,2]
[348544896,1736611856321,-740.07,0.00010546,2]
[348544897,1736611856330,-1545.95,0.0001082,2]
[348544898,1736611856339,-740.07,0.0001082,2]
[348544899,1736611856349,-1545.95,0.00011094,2]
[348544900,1736611856358,-740.07,0.00011094,2]
[348544901,1736611856368,-829.8,0.00011367,2]
[348544902,1736611856377,-1545.95,0.00011368,2]
[348544903,1736611856387,-740.07,0.00011368,2]
[348544904,1736611856396,-829.8,0.00011641,2]
[348544905,1736611856406,-1545.95,0.00011642,2]
[348544906,1736611856416,-740.07,0.00011642,2]
[348544907,1736611856426,-85194.6762308,0.000119,2]
[348544908,1736611856437,-923.00813186,0.000119,2]
[348544909,1736611856448,-4212.71697305,0.000119,2]
[348544910,1736611856459,-47582.63231738,0.000119,2]
[348544911,1736611856471,-1729.68845471,0.000119,2]
[348544912,1736611856491,-500.67570349,0.00010271,2]
[348544913,1736611856500,-6552.56399695,0.000119,2]
[348544914,1736611856511,-29876.22477152,0.000119,2]
[348544915,1736611856523,-31274.87494545,0.000119,2]
[348544916,1736611856540,-816.09563293,0.000119,2]
[348544917,1736611856551,-470.91773345,0.000119,2]
[348544918,1736611856562,-19216.62770123,0.000119,2]
[348544919,1736611856572,-592.31,0.00011915,2]
[348544920,1736611856582,-500.0,0.00011915,2]
[348544921,1736611856591,-500.0,0.00011915,2]
[348544922,1736611856601,-500.0,0.00011915,2]
[348544923,1736611856611,-500.0,0.00011915,2]
[348544924,1736611856620,-500.0,0.00011915,2]
[348544925,1736611856630,-500.0,0.00011915,2]
[348544926,1736611856640,-1085.47,0.00011915,2]
[348544927,1736611856649,-500.0,0.00011915,2]
[348544928,1736611856659,-500.0,0.00011915,2]
[348544929,1736611856668,-585.76,0.00011915,2]
[348544930,1736611856677,-500.0,0.00011915,2]
[348544931,1736611856687,-521.42,0.00011915,2]
[348544932,1736611856697,-448.17,0.00011915,2]
[348544933,1736611856706,-500.0,0.00011915,2]
[348544934,1736611856715,-686.43,0.00011915,2]
[348544935,1736611856724,-557.227762,0.00011915,2]
[348544936,1736611856733,-500.0,0.00011915,2]
[348544937,1736611856742,-500.0,0.00011915,2]
[348544938,1736611856751,-484.8198,0.00011915,2]
[348544939,1736611856761,-935.26,0.00011915,2]
[348544940,1736611856770,-500.0,0.00011915,2]
[348544941,1736611856779,-1526.19,0.00011915,2]
[348544942,1736611856789,-500.0,0.00011915,2]
[348544943,1736611856798,-500.0,0.00011915,2]
[348544944,1736611856807,-500.0,0.00011915,2]
[348544945,1736611856816,-500.0,0.00011915,2]
[348544946,1736611856826,-742.24,0.00011915,2]
[348544947,1736611856835,-500.0,0.00011915,2]
[348544948,1736611856844,-174.07473677,0.00011915,2]
[348544949,1736611856856,-329.76526323,0.00011915,2]
[348544950,1736611856865,-382.65968594,0.00011915,2]
[348544951,1736611856879,-117.34031406,0.00011915,2]
[348544952,1736611856889,-585.44,0.00011915,2]
[348544953,1736611856898,-500.0,0.00011915,2]
[348544954,1736611856908,-2051.78,0.00011915,2]
[348544955,1736611856917,-195.07468594,0.00011915,2]
[348544956,1736611856928,-304.92531406,0.00011915,2]
[348544957,1736611856937,-555.85,0.00011915,2]
[348544958,1736611856947,-1542.46,0.00011915,2]
[348544959,1736611856956,-564.39,0.00011915,2]
[348544960,1736611856966,-160.65,0.00011915,2]
[348544961,1736611856976,-1202.6,0.00011915,2]
[348544962,1736611856985,-500.0,0.00011915,2]
[348544963,1736611856994,-3823.51,0.00011915,2]
[348544964,1736611857003,-269.55,0.00011915,2]
[348544965,1736611857014,-500.0,0.00011915,2]
[348544966,1736611857023,-500.0,0.00011915,2]
[348544967,1736611857032,-1082.25,0.00011915,2]
[348544968,1736611857043,-500.0,0.00011915,2]
[348544969,1736611857053,-500.0,0.00011915,2]
[348544970,1736611857062,-524.81,0.00011915,2]
[348544971,1736611857072,-2517.63,0.00011915,2]
[348544972,1736611857082,-533.58,0.00011915,2]
[348544973,1736611857093,-216.70648746,0.00011915,2]
[348544974,1736611857103,-2028.25,0.00011915,2]
[348544975,1736611857113,-500.0,0.00011915,2]
[348544976,1736611857123,-1281.1,0.00011915,2]
[348544977,1736611857133,-2382.25,0.00011915,2]
[348544978,1736611857143,-2782.4,0.00011915,2]
[348544979,1736611857152,-663.64,0.00011915,2]
[348544980,1736611857162,-500.0,0.00011915,2]
[348544981,1736611857172,-820.41,0.00011915,2]
[348544982,1736611857181,-500.0,0.00011915,2]
[348544983,1736611857191,-500.0,0.00011915,2]
[348544984,1736611857201,-891.16,0.00011915,2]
[348544985,1736611857211,-500.0,0.00011915,2]
[348544986,1736611857220,-1836.81,0.00011915,2]
[348544987,1736611857229,-712.5,0.00011915,2]
[348544988,1736611857243,-1289.01,0.00011915,2]
[348544989,1736611857252,-771.63,0.00011915,2]
[348544990,1736611857262,-656.33,0.00011915,2]
[348544991,1736611857272,-589.73,0.00011915,2]
[348544992,1736611857282,-500.0,0.00011915,2]
[348544993,1736611857292,-811.2,0.00011915,2]
[348544994,1736611857301,-500.0,0.00011915,2]
[348544995,1736611857311,-500.0,0.00011915,2]
[348544996,1736611857321,-500.0,0.00011915,2]
[348544997,1736611857331,-500.0,0.00011915,2]
[348544998,1736611857341,-1470.43,0.00011915,2]
[348544999,1736611857351,-1326.61,0.00011915,2]
[348545000,1736611857361,-500.0,0.00011915,2]
[348545001,1736611857371,-829.8,0.00011915,2]
[348545002,1736611857380,-500.0,0.00011916,2]
[348545003,1736611857390,-500.0,0.00011916,2]
[348545004,1736611857399,-581.1,0.00011916,2]
[348545005,1736611857409,-500.0,0.00011916,2]
[348545006,1736611857418,-500.0,0.00011916,2]
[348545007,1736611857428,-2075.83,0.00011916,2]
[348545008,1736611857437,-1025.56,0.00011916,2]
[348545009,1736611857448,-1975.84,0.00011916,2]
[348545010,1736611857457,-2572.54,0.00011916,2]
[348545011,1736611857467,-1860.87,0.00011916,2]
[348545012,1736611857476,-1253.45,0.00011916,2]
[348545013,1736611857486,-1068.46,0.00011916,2]
[348545014,1736611857495,-1120.31,0.00011916,2]
[348545015,1736611857504,-3375.29,0.00011916,2]
[348545016,1736611857514,-2400.67,0.00011916,2]
[348545017,1736611857523,-711.8424806,0.00011916,2]
[348545018,1736611857535,-18.8175194,0.00011916,2]
[348545019,1736611857544,-534.85,0.00011916,2]
[348545020,1736611857553,-510.73,0.00011916,2]
[348545021,1736611857562,-500.0,0.00011916,2]
[348545022,1736611857572,-413.12907213,0.00011916,2]
[348545023,1736611857583,-272.04092787,0.00011916,2]
[348545024,1736611857593,-222.50181821,0.00011916,2]
[348545025,1736611857604,-986.44546,0.00011916,2]
[348545026,1736611857616,-337.00272179,0.00011916,2]
[348545027,1736611857625,-568.69727812,0.00011916,2]
[348545028,1736611857637,-171.37272188,0.00011916,2]
[348545029,1736611857647,-465.52854237,0.00011934,2]